[Event "17th Delhi GM Open 2019-B"]
[Site "Delhi"]
[Date "2019.01.10"]
[Round "5"]
[White "Dupit Tabu"]
[Black "Ashish Raj"]
[Result "1/2-1/2"]
[ECO "D73"]
[WhiteElo "1821"]
[BlackElo "1724"]
[Annotator "NA RC"]
[PlyCount "107"]
[EventDate "2019.01.09"]
[EventType "swiss"]
[EventCountry "IND"]
[SourceTitle "playchess.com"]
[Source "ChessBase"]
[SourceQuality "1"]
[TimeControl "3600+30"]

1. d4 {[%emt 0:00:00]} d5 {[%emt 0:00:00]} 2. Nf3 {[%emt 0:00:00]} Nf6 {[%emt 0:00:00]} 3. g3 {[%emt 0:00:00]} g6 {[%emt 0:00:00]} 4. Bg2 {[%emt 0:00:00]} Bg7 {[%emt 0:00:00]} 5. c4 {[%emt 0:00:00]} e6 {[%emt 0:00:00] LiveBook: 122 Games D73: Fianchetto Grünfeld: 5 Nf3} (5... dxc4 6. Qa4+ Nfd7 7. Nbd2 O-O 8. Nxc4 c5 9. dxc5 Nxc5 10. Qa3 Nba6 11. Bf4 Be6 12. Rc1 b5 13. Nce5 Rc8 14. O-O b4 {½-½ (46) Bu,X (2712)-Shankland,S (2727) Danzhou 2018}) 6. Bg5 {[%emt 0:00:00]} h6 $146 {[%emt 0:00:00]} ({Predecessor:} 6... O-O 7. O-O Nbd7 8. Nc3 c5 9. Rc1 b6 10. b3 Bb7 11. Ne5 Rc8 12. Qd2 {½-½ (67) Novello,J-Novello,G Florianopolis 2017}) 7. Bd2 {[%emt 0:00:00]} O-O {[%emt 0:00:00]} 8. Nc3 {[%emt 0:00:00]} Ne4 {[%emt 0:00:00]} 9. Be3 {[%emt 0:00:00]} c5 {[%emt 0:00:00]} 10. cxd5 {[%emt 0:00:00]} exd5 {[%emt 0:00:00]} 11. O-O {[%emt 0:14:35]} Nxc3 {[%emt 0:00:00]} 12. bxc3 {[%emt 0:00:00]} c4 {[%emt 0:00:00]} 13. Ne5 {[%emt 0:02:27]} Nc6 {[%emt 0:00:00]} 14. Qd2 {[%emt 0:05:29]} Kh7 {[%emt 0:00:00]} 15. Rab1 {[%emt 0:01:38]} f6 {[%emt 0:00:00]} 16. Nxc6 {[%emt 0:03:36]} bxc6 {[%emt 0:00:00]} 17. Bf4 {[%emt 0:00:01]} Bf5 {[%emt 0:00:00]} 18. Rb7 {[%emt 0:01:35]} g5 {[%emt 0:00:00]} 19. Be3 {[%emt 0:05:18]} (19. e4 $5 Bxe4 20. Bxe4+ dxe4 21. Be3 $11) 19... Qc8 {[%emt 0:00:00]} 20. Rb2 {[%emt 0:01:10]} Rb8 {[%emt 0:00:00]} 21. f3 {[%emt 0:03:22]} Qa6 {[%emt 0:00:00]} 22. Qc1 {[%emt 0:04:50]} Qa3 {[%emt 0:00:00]} 23. Rxb8 {[%emt 0:00:28]} Qxc1 {[%emt 0:00:00]} 24. Bxc1 {[%emt 0:04:44]} Rxb8 {[%emt 0:00:00]} 25. e4 {[%emt 0:00:01]} Bg6 {[%emt 0:00:00]} 26. Re1 {[%emt 0:01:49]} Rb1 {[%emt 0:00:00]} 27. Kf2 {[%emt 0:04:41]} Ra1 {[%emt 0:00:00]} 28. a3 {[%emt 0:00:01]} Bf8 {[%emt 0:00:00]} 29. exd5 {[%emt 0:14:49]} cxd5 {[%emt 0:00:00]} 30. Bh3 {[%emt 0:00:01]} Bf7 {[%emt 0:00:00]} 31. Bf5+ {[%emt 0:00:01]} Kg8 {[%emt 0:00:00]} 32. h4 {[%emt 0:00:02]} Bxa3 {[%emt 0:00:00]} 33. Bxa3 {[%emt 0:00:01]} Rxa3 {[%emt 0:00:00]} 34. Rc1 {[%emt 0:00:01]} Kf8 {[%emt 0:00:00]} 35. Ke3 {[%emt 0:00:02]} Ke7 {[%emt 0:00:00]} 36. hxg5 {[%emt 0:00:01]} hxg5 {[%emt 0:00:00]} 37. f4 {[%emt 0:01:07]} a5 {[%emt 0:00:00]} ({Black should play} 37... Be6 $19 38. Bg6 a5) 38. Kd2 {[%emt 0:02:36]} Ra2+ {[%emt 0:00:00]} 39. Rc2 {[%emt 0:00:00]} Rxc2+ {[%emt 0:00:00]} 40. Kxc2 $1 {[%emt 0:00:00]} Be6 {[%emt 0:00:00]} (40... gxf4 $17 41. gxf4 Be6) 41. Bg6 $1 {[%emt 0:00:27]} Bf7 {[%emt 0:00:00]} 42. Bf5 {[%emt 0:00:00]} Be6 {[%emt 0:00:00]} 43. Bg6 {[%emt 0:00:01]} Kf8 {[%emt 0:00:00]} 44. f5 {[%emt 0:04:09]} Bf7 {[%emt 0:00:00]} 45. Bxf7 {[%emt 0:00:10]} Kxf7 {[%emt 0:00:00]} 46. g4 {[%emt 0:02:19]} Ke7 {[%emt 0:00:00]} 47. Kb2 {[%emt 0:00:00]} Kd7 {[%emt 0:00:00]} 48. Ka3 {[%emt 0:00:00]} Kc7 {[%emt 0:00:00]} 49. Ka2 {[%emt 0:00:49]} Kb6 {[%emt 0:00:00]} 50. Ka3 {[%emt 0:01:58]} Kb5 {[%emt 0:00:00]} 51. Ka2 {[%emt 0:00:08]} Ka6 {[%emt 0:00:00]} 52. Kb2 {[%emt 0:00:02]} Kb5 {[%emt 0:00:00]} 53. Ka3 {[%emt 0:00:01]} Ka6 $11 {[%emt 0:00:00]} 54. Kb2 {[%emt 0:00:00]} 1/2-1/2

[Event "17th Delhi GM Open 2019-B"]
[Site "Delhi"]
[Date "2019.01.10"]
[Round "5"]
[White "Sharsha Backer"]
[Black "Pawar, Harshit"]
[Result "1/2-1/2"]
[ECO "D36"]
[WhiteElo "1812"]
[BlackElo "1719"]
[Annotator "NA RC"]
[PlyCount "81"]
[EventDate "2019.01.09"]
[EventType "swiss"]
[EventCountry "IND"]
[SourceTitle "playchess.com"]
[Source "ChessBase"]
[SourceQuality "1"]
[TimeControl "3600+30"]

{[%evp 10,73,15,32767,32767,32767,32767,32767,32767,32767,44,26,30,21,80,65,96,54,74,66,129,139,117,135,153,141,159,155,146,142,159,130,159,172,220,135,297,175,272,222,32767,32767,32767,32767,297,32767,32767,32767,32767,0,92,-51,-16,-163,-171,-179,-189,-445,-442,-431,-506,-516,-480,-543,32767,-14]} 1. d4 {[%emt 0:00:00]} d5 {[%emt 0:00:00]} 2. c4 {[%emt 0:00:00]} e6 {[%emt 0:00:00]} 3. Nc3 {[%emt 0:00:00]} Nf6 {[%emt 0:00:00]} 4. cxd5 {[%emt 0:00:00]} exd5 {[%emt 0:00:00]} 5. Bg5 {[%emt 0:00:00]} Be7 {[%emt 0:00:00] LiveBook: 4046 Games} 6. e3 {[%emt 0:00:00]} c6 {[%emt 0:00:00]} 7. Bd3 {[%emt 0:00:00]} O-O {[%emt 0:00:00]} 8. Qc2 {[%emt 0:00:00]} h6 {[%emt 0:00:00]} 9. Bh4 {[%emt 0:00:00]} Bg4 {[%emt 0:00:00] D36: Queen's Gambit Declined: Exchange Variation: Main line (5 Bg5 c6 6 Qc2)} (9... Re8 10. Nge2 Nh5 11. Bxe7 Qxe7 12. h3 a5 13. a3 Nd7 14. Na4 Qh4 15. g3 Qd8 16. g4 Nhf6 17. Ng3 Nf8 18. O-O-O {1-0 (67) Caruana,F (2799)-Kramnik,V (2803) Douglas 2017}) 10. h3 {[%emt 0:00:00]} Be6 {[%emt 0:00:00]} 11. Nf3 {[%emt 0:00:00]} b5 $146 {[%emt 0:00:00]} ({Predecessor:} 11... Nbd7 12. O-O a6 13. Rab1 Qc7 14. b4 b5 15. Bxf6 Nxf6 16. a4 Rfb8 17. Rfc1 {1-0 (43) Raluy Lopez,M (1886)-Reyes Cortes,R (1535) ICCF email 2015}) 12. a4 {[%emt 0:00:00]} bxa4 {[%emt 0:00:00]} 13. Rxa4 {[%emt 0:00:00]} Nbd7 {[%emt 0:00:00]} 14. O-O {[%emt 0:00:00]} Nb6 {[%emt 0:00:00]} ({Black should play} 14... a5) 15. Ra6 {[%emt 0:00:00]} Bc8 {[%emt 0:00:00]} 16. Ra2 {[%emt 0:00:00]} a5 {[%emt 0:00:00]} 17. Ne5 {[%emt 0:00:00]} Bb7 {[%emt 0:03:18]} 18. Rfa1 {[%emt 0:00:00]} Bb4 {[%emt 0:04:44]} 19. Na4 {[%emt 0:00:00]} Nxa4 {[%emt 0:02:25]} 20. Rxa4 {[%emt 0:00:00]} g5 {[%emt 0:00:38]} 21. Bg3 {[%emt 0:00:00]} ({Avoid the trap} 21. Nxc6 $2 Bxc6 22. Qxc6 Rc8 $19) 21... Qb6 {[%emt 0:07:53]} (21... Qe7 $16 {was worth a try.} 22. Nxc6 Bxc6 23. Qxc6 Rac8) 22. h4 {[%emt 0:00:00]} Kg7 $2 {[%emt 0:03:27]} (22... c5 $16 23. dxc5 Bxc5) 23. Qe2 {[%emt 0:00:00]} (23. hxg5 $142 hxg5 24. f4) 23... Bc8 {[%emt 0:09:46]} (23... c5 $142 24. hxg5 hxg5) 24. Rc1 {[%emt 0:00:00]} c5 {[%emt 0:01:54]} 25. dxc5 {[%emt 0:00:00]} Bxc5 {[%emt 0:00:29]} 26. hxg5 {[%emt 0:00:00]} hxg5 {[%emt 0:07:31]} 27. Nf3 {[%emt 0:00:00]} Bd7 $11 {[%emt 0:00:02] keeps the balance.} 28. Raa1 {[%emt 0:00:00]} (28. Nxg5 Bxe3 29. fxe3 Bxa4) 28... Bg4 {[%emt 0:00:01]} 29. Ra4 {[%emt 0:00:49]} Rfe8 {[%emt 0:08:07]} 30. Qc2 {[%emt 0:00:01]} (30. Rxg4 $14 Nxg4 31. Nxg5) 30... Rac8 {[%emt 0:04:14]} 31. Bf5 {[%emt 0:00:01]} (31. Qd1 $15) 31... Bxe3 $1 {[%emt 0:06:34]} 32. Bxc8 {[%emt 0:00:25]} Rxc8 {[%emt 0:05:39]} 33. Qxc8 $2 {[%emt 0:00:01]} (33. Bc7 $17 Bxc1 34. Qxc1 Rxc7 35. Qxg5+ Kf8 36. Ne5) 33... Bxc8 {[%emt 0:00:16]} 34. Rxc8 {[%emt 0:00:01]} Ne4 {[%emt 0:04:10]} 35. Be5+ {[%emt 0:00:01]} f6 {[%emt 0:01:38]} 36. fxe3 {[%emt 0:00:00]} Qxe3+ {[%emt 0:01:35]} 37. Kh2 $11 {[%emt 0:00:08]} fxe5 {[%emt 0:00:32]} 38. Rc7+ {[%emt 0:00:01]} Kf6 {[%emt 0:02:54]} 39. Rxa5 {[%emt 0:00:00]} Qf4+ {[%emt 0:00:00]} 40. Kg1 {[%emt 0:00:08]} Qe3+ {[%emt 0:00:00]} 41. Kh2 {[%emt 0:00:02]} 1/2-1/2

[Event "17th Delhi GM Open 2019-B"]
[Site "Delhi"]
[Date "2019.01.10"]
[Round "5"]
[White "Praloy Sahoo"]
[Black "Gupta, Rajesh R.S."]
[Result "1/2-1/2"]
[ECO "B91"]
[WhiteElo "1795"]
[BlackElo "1605"]
[Annotator "NA RC"]
[PlyCount "71"]
[EventDate "2019.01.09"]
[EventType "swiss"]
[EventCountry "IND"]
[SourceTitle "playchess.com"]
[Source "ChessBase"]
[SourceQuality "1"]
[TimeControl "3600+30"]

1. e4 {[%emt 0:00:00]} c5 {[%emt 0:00:00]} 2. Nf3 {[%emt 0:00:00]} d6 {[%emt 0:00:00]} 3. d4 {[%emt 0:00:00]} cxd4 {[%emt 0:00:00]} 4. Nxd4 {[%emt 0:00:00]} Nf6 {[%emt 0:00:00]} 5. Nc3 {[%emt 0:00:00]} a6 {[%emt 0:00:00]} 6. g3 {[%emt 0:00:00]} e5 {[%emt 0:00:00]} 7. Nde2 {[%emt 0:00:00]} Be7 {[%emt 0:00:00]} 8. Bg2 {[%emt 0:00:00]} O-O {[%emt 0:00:00]} 9. O-O {[%emt 0:00:00]} Be6 {[%emt 0:00:00]} 10. h3 {[%emt 0:00:00]} b5 {[%emt 0:00:00]} 11. a3 {[%emt 0:00:00]} Nbd7 {[%emt 0:00:00]} 12. g4 {[%emt 0:00:00]} Nb6 {[%emt 0:00:00]} 13. Bg5 {[%emt 0:00:00]} Rc8 {[%emt 0:00:00]} 14. Ng3 {[%emt 0:00:00]} Nc4 {[%emt 0:00:00]} 15. b3 {[%emt 0:00:00]} Nxa3 {[%emt 0:00:00]} 16. Rxa3 {[%emt 0:00:00]} Rxc3 {[%emt 0:00:00]} 17. Rxa6 {[%emt 0:00:00]} Qc8 {[%emt 0:00:00]} 18. Ra2 {[%emt 0:00:00]} Rd8 {[%emt 0:00:00]} 19. Bd2 {[%emt 0:00:14]} Rc6 {[%emt 0:00:00]} 20. Bb4 {[%emt 0:02:43]} Ra6 {[%emt 0:00:00]} 21. Rxa6 {[%emt 0:04:44]} Qxa6 {[%emt 0:00:00]} 22. Qd3 {[%emt 0:00:33]} g6 {[%emt 0:00:00]} 23. Rd1 {[%emt 0:07:38]} Qc6 {[%emt 0:00:00]} 24. Bf1 {[%emt 0:00:05]} Ne8 {[%emt 0:00:00]} 25. Ne2 {[%emt 0:08:32]} Rc8 {[%emt 0:00:00]} 26. Nc3 {[%emt 0:00:01]} Bd7 {[%emt 0:00:00]} 27. Qxb5 {[%emt 0:11:46]} Qxb5 {[%emt 0:00:00]} 28. Nxb5 {[%emt 0:01:58]} Rxc2 {[%emt 0:00:00]} 29. Rd2 {[%emt 0:03:53]} Rc1 {[%emt 0:00:00]} 30. Nc3 {[%emt 0:00:02]} Be6 {[%emt 0:01:22]} 31. Rb2 {[%emt 0:00:01]} h5 {[%emt 0:00:01]} 32. f3 {[%emt 0:00:00]} hxg4 {[%emt 0:00:00]} 33. hxg4 {[%emt 0:00:19]} Bd8 {[%emt 0:03:11]} 34. Kg2 {[%emt 0:00:01]} Bb6 {[%emt 0:00:00]} 35. Ne2 {[%emt 0:14:58]} Rc8 {[%emt 0:00:01]} 36. Be1 {[%emt 0:00:05]} 1/2-1/2

[Event "17th Delhi GM Open 2019-B"]
[Site "Delhi"]
[Date "2019.01.10"]
[Round "5"]
[White "Tajane Ganesh"]
[Black "Koustav Chakraborty"]
[Result "1/2-1/2"]
[ECO "B21"]
[WhiteElo "1743"]
[BlackElo "1898"]
[Annotator "NA RC"]
[PlyCount "63"]
[EventDate "2019.01.09"]
[EventType "swiss"]
[EventCountry "IND"]
[SourceTitle "playchess.com"]
[Source "ChessBase"]
[SourceQuality "1"]
[TimeControl "3600+30"]

{[%evp 15,63,-33,32767,32767,32767,-11,0,32767,-9,-33,0,-14,-21,-37,-32,-11,-37,-20,-43,-91,0,6,16,0,0,0,32767,32767,0,32767,32767,-114,16,0,0,32767,0,0,32767,35,48,32767,32767,32767,35,32767,41,0,41,0]} 1. e4 {[%emt 0:00:00]} c5 {[%emt 0:00:00]} 2. d4 {[%emt 0:00:00]} cxd4 {[%emt 0:00:00]} 3. c3 {[%emt 0:00:00]} dxc3 {[%emt 0:00:00]} 4. Nxc3 {[%emt 0:00:00]} Nc6 {[%emt 0:00:00]} 5. Nf3 {[%emt 0:00:00]} d6 {[%emt 0:00:00]} 6. Bc4 {[%emt 0:00:00]} Nf6 {[%emt 0:00:00]} 7. O-O {[%emt 0:00:00]} e6 {[%emt 0:00:00]} 8. Qe2 {[%emt 0:00:00] LiveBook: 96 Games} Be7 {[%emt 0:00:00]} 9. Rd1 {[%emt 0:00:00]} e5 {[%emt 0:00:00]} 10. Be3 {[%emt 0:00:00]} O-O {[%emt 0:00:00]} 11. b4 {[%emt 0:00:00] B21: Sicilian: 2 f4 and Morra Gambit} (11. Rac1 Be6 12. b4 Bg4 13. b5 Na5 14. Bd5 Qd7 15. h3 Bh5 16. a4 Rfc8 17. Ba2 b6 18. Nd5 Nxd5 19. Bxd5 Rxc1 20. Bxc1 Rd8 21. Ba3 {½-½ (21) Grigoryev,V (2503)-Voll,A (2556) ICCF email 2011}) 11... a6 {[%emt 0:00:00]} 12. h3 {[%emt 0:00:00]} b5 {[%emt 0:00:00]} 13. Bb3 {[%emt 0:09:42]} Be6 {[%emt 0:00:00]} 14. Bxe6 $146 {[%emt 0:01:22]} ({Predecessor:} 14. Nd5 Bxd5 15. exd5 Nxb4 16. a3 Nbxd5 17. Bxd5 Nxd5 18. Rxd5 Qc8 19. Ng5 f5 20. Rc1 Qb7 21. Qa2 Kh8 22. Ne6 Rfc8 23. Rcd1 Rc4 24. Bg5 {1-0 (24) Desquiens,S (1933)-Castilla,T ICCF email 2011}) 14... fxe6 {[%emt 0:00:00]} 15. a4 {[%emt 0:00:46]} Nxb4 {[%emt 0:00:00]} 16. axb5 {[%emt 0:03:23]} axb5 {[%emt 0:00:00]} 17. Ng5 {[%emt 0:06:17]} Rxa1 {[%emt 0:11:23]} ({Black should try} 17... Qd7 $17 18. Qxb5 Nc6) 18. Rxa1 {[%emt 0:00:09]} d5 {[%emt 0:06:05]} 19. Nxe6 {[%emt 0:12:42]} (19. Nxb5 $5 {[%cal Rg5e6]} d4 20. Nxe6 $15) 19... Qc8 {[%emt 0:00:10] Double Attack} 20. Nxf8 {[%emt 0:00:18]} Qxc3 {[%emt 0:00:02]} 21. Rc1 {[%emt 0:00:26]} Qd3 {[%emt 0:06:38]} 22. Qxd3 {[%emt 0:00:23]} Nxd3 {[%emt 0:00:05]} 23. Rd1 {[%emt 0:00:53]} (23. Rc3 $1 $11) 23... Bxf8 {[%emt 0:01:21]} ({Black should try} 23... dxe4 $17 24. Ne6 Nd5) 24. Rxd3 {[%emt 0:00:57]} d4 {[%emt 0:00:03]} 25. Bc1 {[%emt 0:01:11]} Nxe4 {[%emt 0:00:19]} 26. f4 {[%emt 0:01:11]} Nc3 {[%emt 0:04:01]} 27. Kf1 $1 {[%emt 0:01:22]} Bd6 {[%emt 0:00:00]} 28. fxe5 {[%emt 0:01:03]} Bxe5 {[%emt 0:00:03]} 29. Ba3 {[%emt 0:00:25]} Ne4 $1 {[%emt 0:01:09]} 30. Bb2 {[%emt 0:00:28]} Nc3 {[%emt 0:00:58]} 31. Ba3 {[%emt 0:00:00]} Ne4 {[%emt 0:03:22]} 32. Bb2 $11 {[%emt 0:00:38]} 1/2-1/2

[Event "17th Delhi GM Open 2019-B"]
[Site "Delhi"]
[Date "2019.01.10"]
[Round "5"]
[White "Binayak Rath"]
[Black "Dhanush Ragav N S"]
[Result "0-1"]
[ECO "C80"]
[WhiteElo "1737"]
[BlackElo "1854"]
[Annotator "NA RC"]
[PlyCount "119"]
[EventDate "2019.01.09"]
[EventType "swiss"]
[EventCountry "IND"]
[SourceTitle "playchess.com"]
[Source "ChessBase"]
[SourceQuality "1"]
[TimeControl "3600+30"]

{[%evp 8,119,18,32767,32767,32767,29,32767,32767,32767,13,24,30,22,16,18,23,24,20,13,31,17,22,-5,-2,0,15,7,15,0,0,0,0,-25,-18,-12,-11,-35,-32,32767,32767,32767,32767,32767,32767,-131,-133,-139,-133,-156,-158,-204,-207,-264,-298,-326,-315,-327,-310,-285,-309,-344,-303,-331,-281,-445,-499,-439,32767,32767,-366,32767,-381,32767,-378,-391,-389,-444,-422,-385,-326,-348,0,-403,-412,-452,-479,-450,-492,-590,-612,-675,-517,-486,-512,-500,-593,-682,-563,-546,0,-818,-974,-1008,-1427,-1295,-876,-1862,32767,-1123,32767,32767,32767,-1628]} 1. e4 {[%emt 0:00:00]} e5 {[%emt 0:00:00]} 2. Nf3 {[%emt 0:00:00]} Nc6 {[%emt 0:00:00]} 3. Bb5 {[%emt 0:00:00]} a6 {[%emt 0:00:00]} 4. Ba4 {[%emt 0:00:00]} Nf6 {[%emt 0:00:00]} 5. O-O {[%emt 0:00:00]} Nxe4 {[%emt 0:00:00]} 6. Re1 {[%emt 0:00:00]} Nc5 {[%emt 0:00:00]} 7. Bxc6 {[%emt 0:00:00]} dxc6 {[%emt 0:00:00]} 8. Nxe5 {[%emt 0:00:00]} Be7 {[%emt 0:00:00]} 9. d4 {[%emt 0:00:00] LiveBook: 39 Games} Nd7 {[%emt 0:00:00] C80: Open Ruy Lopez: Sidelines and 9 Nbd2} (9... Ne6 10. Be3 O-O 11. c4 Re8 12. Nc3 f6 13. Nf3 Nf8 14. Qb3 Bg4 15. Nd2 b6 16. d5 c5 17. h3 Bh5 18. Nde4 Bd6 19. Nxd6 Qxd6 {1-0 (57) Martirosyan,H (2572)-Petrosyan,M (2551) Yerevan 2018}) 10. Nd3 {[%emt 0:00:00]} O-O {[%emt 0:00:00]} 11. Bf4 {[%emt 0:00:00]} Nf6 {[%emt 0:00:00]} 12. Nd2 $146 {[%emt 0:00:00]} ({Predecessor:} 12. c3 Bg4 13. Qb3 Nd5 14. Bg3 Bg5 15. f4 Bh6 16. Nd2 Bf5 17. Ne4 {0-1 (47) Buckan,J-Hanisch,K Germany 2002}) 12... Bg4 {[%emt 0:00:00]} 13. Nf3 {[%emt 0:00:00]} Nd5 {[%emt 0:02:10]} 14. Bg3 {[%emt 0:00:00]} Bd6 {[%emt 0:01:45]} 15. Bxd6 {[%emt 0:00:00]} cxd6 {[%emt 0:06:05]} 16. c4 {[%emt 0:00:00]} Ne7 {[%emt 0:06:24]} 17. h3 {[%emt 0:00:00]} Be6 {[%emt 0:01:47]} 18. b3 {[%emt 0:00:00]} Ng6 {[%emt 0:00:43]} 19. Qd2 {[%emt 0:00:00]} Qf6 {[%emt 0:07:05]} 20. Qg5 {[%emt 0:00:00]} Qxg5 {[%emt 0:02:39]} 21. Nxg5 {[%emt 0:00:00]} Bf5 {[%emt 0:01:49]} 22. Rad1 {[%emt 0:00:00]} Rfe8 {[%emt 0:00:42]} 23. Kf1 {[%emt 0:00:25]} Bxd3+ {[%emt 0:03:03]} 24. Rxd3 {[%emt 0:00:00]} Rxe1+ {[%emt 0:00:12]} 25. Kxe1 {[%emt 0:00:01]} h6 {[%emt 0:01:23]} 26. Nf3 {[%emt 0:01:56]} Nf4 $1 {[%emt 0:00:22]} 27. Rc3 {[%emt 0:01:04]} Nxg2+ {[%emt 0:00:26]} 28. Kd2 {[%emt 0:00:20]} Re8 {[%emt 0:01:50]} 29. b4 {[%emt 0:02:07]} Nf4 {[%emt 0:00:29]} 30. Ng1 {[%emt 0:00:02]} Re4 {[%emt 0:00:36]} 31. Rc1 {[%emt 0:08:26]} Rxd4+ {[%emt 0:00:35]} 32. Ke3 {[%emt 0:00:00]} c5 {[%emt 0:00:32]} 33. bxc5 {[%emt 0:00:03]} dxc5 {[%emt 0:00:15]} 34. Nf3 {[%emt 0:00:13]} Ng2+ {[%emt 0:00:41]} 35. Ke2 {[%emt 0:00:00]} Rd7 {[%emt 0:00:34]} 36. Rg1 $2 {[%emt 0:02:16]} (36. Ne5 Nf4+ 37. Ke3) 36... Nf4+ {[%emt 0:00:22]} 37. Ke3 {[%emt 0:00:01]} g5 {[%emt 0:00:38]} 38. Nxg5 {[%emt 0:01:04]} hxg5 {[%emt 0:00:20]} 39. Rxg5+ {[%emt 0:00:09]} Ng6 {[%emt 0:00:23]} 40. Rxc5 {[%emt 0:00:18]} Kg7 {[%emt 0:00:32]} 41. Rc8 {[%emt 0:00:30]} Kf6 {[%emt 0:00:41]} 42. f4 {[%emt 0:00:13]} Re7+ {[%emt 0:00:24]} 43. Kf3 $1 $11 {[%emt 0:00:15]} Re1 {[%emt 0:00:27]} (43... Nh4+ 44. Kg4) 44. Rc7 {[%emt 0:00:51]} Re7 $2 {[%emt 0:00:37]} (44... Rf1+ $19 45. Ke3 Rxf4) 45. Rc5 $2 {[%emt 0:00:07]} Rd7 {[%emt 0:00:30]} 46. Kg4 {[%emt 0:01:47]} Rd4 {[%emt 0:00:26]} 47. Rf5+ {[%emt 0:00:01]} Kg7 {[%emt 0:00:36]} 48. c5 {[%emt 0:00:54]} f6 {[%emt 0:00:27]} 49. c6 {[%emt 0:00:58]} bxc6 {[%emt 0:00:36]} 50. Ra5 {[%emt 0:00:04]} Rxf4+ {[%emt 0:00:28]} 51. Kg3 {[%emt 0:00:00]} Rc4 {[%emt 0:00:25]} 52. Rxa6 $1 {[%emt 0:00:01]} Rc3+ {[%emt 0:00:21]} 53. Kg4 {[%emt 0:00:25]} Rc4+ $2 {[%emt 0:00:37]} ({Black should play} 53... Kf7 $19 54. h4 Rc4+ 55. Kf3 Nxh4+ 56. Ke2 Nf5) 54. Kg3 {[%emt 0:00:01]} f5 {[%emt 0:00:20]} 55. Ra3 {[%emt 0:00:31]} Kf6 {[%emt 0:00:23]} 56. Ra8 {[%emt 0:00:39]} Kg5 {[%emt 0:00:39]} 57. a4 {[%emt 0:00:13]} Rc3+ {[%emt 0:00:22]} 58. Kf2 {[%emt 0:00:18]} Rxh3 {[%emt 0:00:30]} 59. a5 {[%emt 0:00:06]} Kf4 {[%emt 0:00:12]} 60. a6 $19 {[%emt 0:00:26]} 0-1

[Event "17th Delhi GM Open 2019-B"]
[Site "Delhi"]
[Date "2019.01.10"]
[Round "5"]
[White "Deepak, Rai"]
[Black "Anwar N K"]
[Result "1-0"]
[ECO "A45"]
[WhiteElo "1710"]
[BlackElo "1817"]
[Annotator "NA RC"]
[PlyCount "129"]
[EventDate "2019.01.09"]
[EventType "swiss"]
[EventCountry "IND"]
[SourceTitle "playchess.com"]
[Source "ChessBase"]
[SourceQuality "1"]
[TimeControl "3600+30"]

{[%evp 14,104,11,18,0,-9,-10,-25,-30,-32,-25,-32,-26,-39,-25,-35,-34,-33,-41,-30,-43,32767,-30,-39,0,0,0,0,0,0,8,0,51,20,62,12,43,41,43,0,32767,32767,32767,32767,32767,32767,32767,32767,79,85,67,60,63,51,93,39,55,16,28,0,0,0,-4,-29,-20,-33,-25,-28,0,32767,32767,0,0,0,64,41,58,59,161,76,32767,32767,32767,91,32767,32767,66,64,158,132,155,135,144]} 1. d4 {[%emt 0:00:00]} Nf6 {[%emt 0:00:00]} 2. Bf4 {[%emt 0:00:00]} g6 {[%emt 0:00:00]} 3. Nc3 {[%emt 0:00:00]} d5 {[%emt 0:00:00] A45: Trompowsky Attack} 4. e3 {[%emt 0:00:00]} Bg7 {[%emt 0:00:00]} 5. h4 {[%emt 0:00:00]} c6 {[%emt 0:00:00]} 6. Be2 {[%emt 0:00:00]} h5 {[%emt 0:00:00]} 7. Nf3 {[%emt 0:00:00]} Bg4 {[%emt 0:00:00]} 8. Ne5 {[%emt 0:00:00] LiveBook: 15 Games} Bxe2 {[%emt 0:00:00]} 9. Nxe2 $146 {[%emt 0:00:00]} ({Predecessor:} 9. Qxe2 Nbd7 10. O-O-O Nxe5 11. Bxe5 {1-0 (49) Karjakin,S (2785)-Li,C (2720) Doha 2016}) 9... Nbd7 {[%emt 0:00:00]} 10. Nc1 {[%emt 0:00:00]} Qb6 {[%emt 0:00:00]} 11. Ncd3 {[%emt 0:00:00]} c5 {[%emt 0:00:00]} 12. dxc5 {[%emt 0:00:00]} Nxc5 {[%emt 0:00:00]} 13. O-O {[%emt 0:00:00]} O-O {[%emt 0:00:00]} 14. Nxc5 {[%emt 0:00:00]} Qxc5 {[%emt 0:00:00]} 15. c3 {[%emt 0:00:00]} Rfd8 {[%emt 0:00:00]} 16. Qb3 {[%emt 0:00:00]} Nd7 {[%emt 0:00:00]} 17. Nd3 {[%emt 0:00:00]} Qc4 {[%emt 0:00:00]} 18. Rfd1 {[%emt 0:00:00]} Qxb3 {[%emt 0:07:18]} 19. axb3 {[%emt 0:00:00]} e6 {[%emt 0:00:55]} 20. b4 {[%emt 0:00:00]} a6 {[%emt 0:02:00]} 21. Ra2 {[%emt 0:00:00]} Rac8 {[%emt 0:00:23]} 22. Ra5 {[%emt 0:00:00]} Nb6 {[%emt 0:06:23]} 23. Nc5 {[%emt 0:00:00]} Nc4 {[%emt 0:01:37]} 24. Ra2 {[%emt 0:00:00]} b6 {[%emt 0:06:22]} 25. Nxa6 {[%emt 0:00:41]} Ra8 {[%emt 0:01:19]} 26. Rda1 {[%emt 0:00:30]} (26. b5 $14) 26... Nxb2 {[%emt 0:02:02]} 27. Rxb2 {[%emt 0:01:17]} Bxc3 {[%emt 0:00:14]} 28. Rba2 {[%emt 0:00:06]} Bxa1 {[%emt 0:00:25]} 29. Rxa1 {[%emt 0:00:04]} b5 {[%emt 0:01:04]} 30. Be5 {[%emt 0:00:46]} Rdc8 {[%emt 0:02:56]} (30... d4 $11 31. exd4 (31. Bxd4 Rd6 $17) 31... f6) 31. Nc5 {[%emt 0:00:38]} Rxa1+ {[%emt 0:00:15]} 32. Bxa1 {[%emt 0:00:01]} Ra8 {[%emt 0:00:40]} 33. Be5 {[%emt 0:04:15]} Ra2 {[%emt 0:00:01]} 34. Nb3 {[%emt 0:01:34]} (34. Nd7 $16) 34... Ra4 {[%emt 0:00:55]} 35. Bd6 {[%emt 0:00:25]} e5 {[%emt 0:00:17]} 36. Kf1 {[%emt 0:01:42]} f6 {[%emt 0:00:29]} 37. Ke2 {[%emt 0:00:29]} Ra2+ {[%emt 0:00:22]} 38. Nd2 {[%emt 0:00:57]} Kf7 {[%emt 0:00:42]} 39. f3 {[%emt 0:03:48]} Ke6 {[%emt 0:00:13]} 40. Bc5 {[%emt 0:00:10]} f5 {[%emt 0:00:38]} 41. f4 {[%emt 0:03:44]} d4 {[%emt 0:00:00]} 42. fxe5 {[%emt 0:04:40]} dxe3 {[%emt 0:00:52]} 43. Kxe3 {[%emt 0:00:10]} Kxe5 {[%emt 0:00:22]} ({Black should play} 43... f4+ $11 44. Kd3 Kxe5) 44. Nf3+ {[%emt 0:01:29]} Kd5 {[%emt 0:00:03]} 45. g3 {[%emt 0:00:48]} Ra8 {[%emt 0:03:34]} (45... Rg2 $14) 46. Nd4 {[%emt 0:03:34]} (46. Kf4 $142) 46... Re8+ {[%emt 0:02:28]} 47. Kf3 {[%emt 0:00:11]} Kc4 {[%emt 0:00:29]} 48. Ne2 {[%emt 0:02:47]} Re6 {[%emt 0:01:11]} 49. Nf4 {[%emt 0:00:01]} Ra6 {[%emt 0:00:31]} 50. Ng2 {[%emt 0:00:55]} Re6 {[%emt 0:00:22]} (50... Kd5 $142) 51. Ne3+ {[%emt 0:01:43]} Kd3 {[%emt 0:00:52]} 52. Nd5 {[%emt 0:00:02]} Kc4 $16 {[%emt 0:00:46]} 53. Ne7 {[%emt 0:09:47]} Ra6 {[%emt 0:00:01]} 54. Kf4 {[%emt 0:00:49]} Re6 {[%emt 0:00:49]} 55. Kg5 {[%emt 0:01:06]} Re4 {[%emt 0:01:00]} 56. Kxg6 {[%emt 0:00:45]} f4 {[%emt 0:00:21]} 57. gxf4 {[%emt 0:00:38]} Rxf4 {[%emt 0:00:11]} 58. Kxh5 {[%emt 0:00:03]} Re4 {[%emt 0:00:28]} 59. Kg5 {[%emt 0:01:39]} Re5+ {[%emt 0:00:34]} 60. Nf5 {[%emt 0:00:09]} Rxc5 {[%emt 0:00:33]} 61. bxc5 {[%emt 0:00:03]} Kxc5 {[%emt 0:00:01]} 62. h5 {[%emt 0:01:43]} b4 {[%emt 0:00:00]} 63. Ne3 {[%emt 0:00:08]} b3 {[%emt 0:00:28]} 64. Nd1 {[%emt 0:00:02]} Kd4 {[%emt 0:00:10]} 65. h6 {[%emt 0:00:21]} 1-0